[Event "Titled Tuesday Blitz November 22 Early 2022"]
[White "Ajay, Karthikeyan"]
[Black "Pultinevicius, Paulius"]
[WhiteFideId "35011685"]
[BlackFideId "12809390"]
[WhiteElo "2337"]
[BlackElo "2493"]
[Result "0-1"]
[Round "03"]
[TimeControl "180+1"]
[Date "2022.11.22"]
[WhiteClock "0:00:05"]
[BlackClock "0:00:06"]

1. e4 {[%clk 0:03:00]}  g6 {[%clk 0:03:00]} 2. d4 {[%clk 0:03:00]}  Bg7 {[%clk 0:03:01]} 3. Nf3 {[%clk 0:03:00]}  d6 {[%clk 0:03:01]} 4. h3 {[%clk 0:03:01]}  a6 {[%clk 0:03:02]} 5. Be2 {[%clk 0:03:00]}  b5 {[%clk 0:03:02]} 6. a4 {[%clk 0:02:59]}  bxa4 {[%clk 0:02:58]} 7. Rxa4 {[%clk 0:02:58]}  Bb7 {[%clk 0:02:58]} 8. Bd3 {[%clk 0:02:55]}  Nd7 {[%clk 0:02:58]} 9. c3 {[%clk 0:02:54]}  Ngf6 {[%clk 0:02:58]} 10. Qe2 {[%clk 0:02:54]}  c5 {[%clk 0:02:54]} 11. d5 {[%clk 0:02:51]}  O-O {[%clk 0:02:37]} 12. Bg5 {[%clk 0:02:47]}  h6 {[%clk 0:02:33]} 13. Bf4 {[%clk 0:02:47]}  Re8 {[%clk 0:02:30]} 14. O-O {[%clk 0:02:46]}  e6 {[%clk 0:02:29]} 15. dxe6 {[%clk 0:02:46]}  Rxe6 {[%clk 0:02:30]} 16. Nbd2 {[%clk 0:02:23]}  d5 {[%clk 0:02:05]} 17. e5 {[%clk 0:02:23]}  Nb6 {[%clk 0:02:06]} 18. Raa1 {[%clk 0:02:22]}  a5 {[%clk 0:02:02]} 19. Rfe1 {[%clk 0:02:20]}  Nfd7 {[%clk 0:02:02]} 20. h4 {[%clk 0:02:05]}  a4 {[%clk 0:02:00]} 21. h5 {[%clk 0:01:58]}  Qe7 {[%clk 0:01:50]} 22. hxg6 {[%clk 0:01:58]}  fxg6 {[%clk 0:01:51]} 23. Bg3 {[%clk 0:01:52]}  Re8 {[%clk 0:01:35]} 24. c4 {[%clk 0:01:46]}  Nxe5 {[%clk 0:01:13]} 25. Nxe5 {[%clk 0:01:26]}  Bxe5 {[%clk 0:01:14]} 26. Bxe5 {[%clk 0:01:02]}  Rxe5 {[%clk 0:01:15]} 27. Qxe5 {[%clk 0:01:02]}  Qxe5 {[%clk 0:01:16]} 28. Rxe5 {[%clk 0:01:03]}  Rxe5 {[%clk 0:01:17]} 29. cxd5 {[%clk 0:00:55]}  Bxd5 {[%clk 0:01:01]} 30. Kf1 {[%clk 0:00:33]}  Kg7 {[%clk 0:00:54]} 31. Rc1 {[%clk 0:00:33]}  Bf7 {[%clk 0:00:36]} 32. Nc4 {[%clk 0:00:30]}  Bxc4 {[%clk 0:00:26]} 33. Bxc4 {[%clk 0:00:31]}  Re4 {[%clk 0:00:26]} 34. Bb5 {[%clk 0:00:29]}  Rb4 {[%clk 0:00:17]} 35. Rxc5 {[%clk 0:00:29]}  Rxb2 {[%clk 0:00:18]} 36. Rc7+ {[%clk 0:00:29]}  Kf8 {[%clk 0:00:18]} 37. Bc6 {[%clk 0:00:20]}  Rc2 {[%clk 0:00:14]} 38. Ke1 {[%clk 0:00:08]}  a3 {[%clk 0:00:14]} 39. Ra7 {[%clk 0:00:09]}  a2 {[%clk 0:00:08]} 40. Kd1 {[%clk 0:00:07]}  Rxc6 {[%clk 0:00:08]} 41. Rxa2 {[%clk 0:00:08]}  Rf6 {[%clk 0:00:07]} 42. g3 {[%clk 0:00:07]}  Kg7 {[%clk 0:00:08]} 43. Ke2 {[%clk 0:00:08]}  h5 {[%clk 0:00:08]} 44. Kf1 {[%clk 0:00:08]}  Nd5 {[%clk 0:00:08]} 45. Kg2 {[%clk 0:00:08]}  Rf7 {[%clk 0:00:07]} 46. Rd2 {[%clk 0:00:09]}  Nf6 {[%clk 0:00:08]} 47. Rd4 {[%clk 0:00:09]}  Ng4 {[%clk 0:00:08]} 48. Rd2 {[%clk 0:00:08]}  Kh6 {[%clk 0:00:08]} 49. Re2 {[%clk 0:00:08]}  Kg5 {[%clk 0:00:07]} 50. Rd2 {[%clk 0:00:07]}  Rxf2+ {[%clk 0:00:04]} 51. Rxf2 {[%clk 0:00:08]}  Nxf2 {[%clk 0:00:04]} 52. Kxf2 {[%clk 0:00:09]}  Kg4 {[%clk 0:00:05]} 53. Kg2 {[%clk 0:00:09]}  g5 {[%clk 0:00:06]} 54. Kh2 {[%clk 0:00:08]}  Kf3 {[%clk 0:00:06]} 55. Kh3 {[%clk 0:00:08]}  g4+ {[%clk 0:00:06]} 56. Kh4 {[%clk 0:00:05]}  Kg2 {[%clk 0:00:05]} 57. Kxh5 {[%clk 0:00:05]}  Kxg3 {[%clk 0:00:06]} 0-1


[Site "https://www.chess.com"]

[Event "Titled Tuesday Blitz November 22 Early 2022"]
[White "Akbas, Umut Ata"]
[Black "Bortnyk, Olexandr"]
[WhiteFideId "44572646"]
[BlackFideId "14120828"]
[WhiteElo "2192"]
[BlackElo "2723"]
[Result "1-0"]
[Round "03"]
[TimeControl "180+1"]
[Date "2022.11.22"]
[WhiteClock "0:00:19"]
[BlackClock "0:00:02"]

1. d4 {[%clk 0:03:00]}  d6 {[%clk 0:02:59]} 2. c4 {[%clk 0:02:59]}  e5 {[%clk 0:02:59]} 3. Nc3 {[%clk 0:02:55]}  exd4 {[%clk 0:02:58]} 4. Qxd4 {[%clk 0:02:56]}  Nc6 {[%clk 0:02:59]} 5. Qd2 {[%clk 0:02:56]}  g6 {[%clk 0:02:59]} 6. Nf3 {[%clk 0:02:55]}  Bg7 {[%clk 0:02:59]} 7. g3 {[%clk 0:02:51]}  Nf6 {[%clk 0:02:59]} 8. Bg2 {[%clk 0:02:51]}  O-O {[%clk 0:02:59]} 9. O-O {[%clk 0:02:51]}  Be6 {[%clk 0:03:00]} 10. Nd5 {[%clk 0:02:44]}  Re8 {[%clk 0:02:12]} 11. Ng5 {[%clk 0:02:36]}  Bxd5 {[%clk 0:02:02]} 12. cxd5 {[%clk 0:02:35]}  Ne5 {[%clk 0:02:03]} 13. Qb4 {[%clk 0:02:29]}  h6 {[%clk 0:01:23]} 14. Nf3 {[%clk 0:02:24]}  Nxf3+ {[%clk 0:01:11]} 15. Bxf3 {[%clk 0:02:24]}  b6 {[%clk 0:01:10]} 16. Qc4 {[%clk 0:02:19]}  Nd7 {[%clk 0:01:10]} 17. Bg2 {[%clk 0:02:13]}  a5 {[%clk 0:01:08]} 18. Qc2 {[%clk 0:01:53]}  Nc5 {[%clk 0:01:06]} 19. Be3 {[%clk 0:01:52]}  a4 {[%clk 0:01:06]} 20. Rac1 {[%clk 0:01:41]}  Qf6 {[%clk 0:01:03]} 21. b4 {[%clk 0:01:36]}  axb3 {[%clk 0:00:59]} 22. axb3 {[%clk 0:01:36]}  Ra3 {[%clk 0:00:35]} 23. b4 {[%clk 0:01:33]}  Na6 {[%clk 0:00:35]} 24. Qc4 {[%clk 0:01:23]}  Qb2 {[%clk 0:00:34]} 25. Rb1 {[%clk 0:01:18]}  Qc3 {[%clk 0:00:32]} 26. Qb5 {[%clk 0:01:10]}  Re7 {[%clk 0:00:31]} 27. Rfc1 {[%clk 0:01:03]}  Qe5 {[%clk 0:00:30]} 28. Bf3 {[%clk 0:01:02]}  h5 {[%clk 0:00:28]} 29. h4 {[%clk 0:01:01]}  Qf5 {[%clk 0:00:27]} 30. Bg5 {[%clk 0:00:47]}  Re5 {[%clk 0:00:22]} 31. Ra1 {[%clk 0:00:42]}  Rxd5 {[%clk 0:00:07]} 32. Bxd5 {[%clk 0:00:43]}  Rxa1 {[%clk 0:00:07]} 33. Rxa1 {[%clk 0:00:42]}  Bxa1 {[%clk 0:00:08]} 34. Qxa6 {[%clk 0:00:41]}  Bd4 {[%clk 0:00:05]} 35. Qa8+ {[%clk 0:00:40]}  Kg7 {[%clk 0:00:05]} 36. e3 {[%clk 0:00:40]}  Be5 {[%clk 0:00:03]} 37. Qc6 {[%clk 0:00:37]}  Qb1+ {[%clk 0:00:03]} 38. Kg2 {[%clk 0:00:37]}  Qd3 {[%clk 0:00:03]} 39. b5 {[%clk 0:00:33]}  Qd2 {[%clk 0:00:02]} 40. Bf3 {[%clk 0:00:31]}  Qd3 {[%clk 0:00:01]} 41. Qxc7 {[%clk 0:00:30]}  Qxb5 {[%clk 0:00:02]} 42. Qd8 {[%clk 0:00:26]}  Qb3 {[%clk 0:00:02]} 43. Be7 {[%clk 0:00:27]}  Qe6 {[%clk 0:00:01]} 44. Qf8+ {[%clk 0:00:26]}  Kh7 {[%clk 0:00:02]} 45. Bg5 {[%clk 0:00:24]}  b5 {[%clk 0:00:02]} 46. Qb8 {[%clk 0:00:22]}  Qc4 {[%clk 0:00:02]} 47. Qb7 {[%clk 0:00:22]}  Qe6 {[%clk 0:00:01]} 48. Bd5 {[%clk 0:00:22]}  Qf5 {[%clk 0:00:02]} 49. Bxf7 {[%clk 0:00:22]}  Bg7 {[%clk 0:00:02]} 50. Bd5 {[%clk 0:00:20]}  b4 {[%clk 0:00:03]} 51. Qa8 {[%clk 0:00:19]}  Qd3 {[%clk 0:00:02]} 52. Qg8# {[%clk 0:00:19]} 1-0


[Site "https://www.chess.com"]

[Event "Titled Tuesday Blitz November 22 Early 2022"]
[White "Andreikin, Dmitry"]
[Black "Abdyzhapar, Asylbek"]
[WhiteFideId "4158814"]
[BlackFideId "13800337"]
[WhiteElo "2736"]
[BlackElo "2323"]
[Result "1-0"]
[Round "03"]
[TimeControl "180+1"]
[Date "2022.11.22"]
[WhiteClock "0:01:04"]
[BlackClock "0:00:38"]

1. d4 {[%clk 0:03:00]}  Nf6 {[%clk 0:02:59]} 2. Nf3 {[%clk 0:03:01]}  g6 {[%clk 0:02:59]} 3. b3 {[%clk 0:02:59]}  Bg7 {[%clk 0:02:59]} 4. Bb2 {[%clk 0:03:00]}  O-O {[%clk 0:02:59]} 5. e3 {[%clk 0:03:00]}  d5 {[%clk 0:03:00]} 6. Nbd2 {[%clk 0:02:58]}  a5 {[%clk 0:02:52]} 7. c4 {[%clk 0:02:58]}  a4 {[%clk 0:02:51]} 8. Be2 {[%clk 0:02:52]}  a3 {[%clk 0:02:51]} 9. Bc3 {[%clk 0:02:52]}  Ne4 {[%clk 0:02:45]} 10. Nxe4 {[%clk 0:02:51]}  dxe4 {[%clk 0:02:45]} 11. Nd2 {[%clk 0:02:52]}  f5 {[%clk 0:02:44]} 12. b4 {[%clk 0:02:47]}  c6 {[%clk 0:02:36]} 13. O-O {[%clk 0:02:46]}  Be6 {[%clk 0:02:36]} 14. Nb3 {[%clk 0:02:45]}  Bf7 {[%clk 0:02:34]} 15. Rc1 {[%clk 0:02:43]}  Nd7 {[%clk 0:02:33]} 16. b5 {[%clk 0:02:36]}  Nb6 {[%clk 0:02:26]} 17. bxc6 {[%clk 0:02:28]}  bxc6 {[%clk 0:02:26]} 18. Bb4 {[%clk 0:02:28]}  Ra4 {[%clk 0:02:19]} 19. Qd2 {[%clk 0:02:25]}  Re8 {[%clk 0:02:12]} 20. Nc5 {[%clk 0:02:14]}  Ra7 {[%clk 0:02:12]} 21. Rfd1 {[%clk 0:02:11]}  e5 {[%clk 0:02:02]} 22. d5 {[%clk 0:02:09]}  cxd5 {[%clk 0:01:59]} 23. cxd5 {[%clk 0:02:10]}  f4 {[%clk 0:01:37]} 24. Ne6 {[%clk 0:02:03]}  Qd7 {[%clk 0:01:14]} 25. Nxg7 {[%clk 0:01:38]}  Kxg7 {[%clk 0:01:13]} 26. d6 {[%clk 0:01:38]}  Nd5 {[%clk 0:01:07]} 27. Bc5 {[%clk 0:01:38]}  Rb7 {[%clk 0:01:04]} 28. Bxa3 {[%clk 0:01:37]}  f3 {[%clk 0:00:54]} 29. gxf3 {[%clk 0:01:30]}  exf3 {[%clk 0:00:55]} 30. Bxf3 {[%clk 0:01:29]}  e4 {[%clk 0:00:55]} 31. Bg2 {[%clk 0:01:26]}  Qg4 {[%clk 0:00:52]} 32. h3 {[%clk 0:01:15]}  Qg5 {[%clk 0:00:52]} 33. Rc5 {[%clk 0:01:14]}  Re5 {[%clk 0:00:50]} 34. Bb2 {[%clk 0:01:11]}  Rxb2 {[%clk 0:00:49]} 35. Qxb2 {[%clk 0:01:12]}  Kh6 {[%clk 0:00:46]} 36. d7 {[%clk 0:01:07]}  Nxe3 {[%clk 0:00:40]} 37. fxe3 {[%clk 0:01:05]}  Rxc5 {[%clk 0:00:40]} 38. d8=Q {[%clk 0:01:04]}  Qxe3+ {[%clk 0:00:38]} 39. Qf2 {[%clk 0:01:04]}  Qxf2+ {[%clk 0:00:38]} 40. Kxf2 {[%clk 0:01:04]} 1-0


[Site "https://www.chess.com"]

[Event "Titled Tuesday Blitz November 22 Early 2022"]
[White "Ansh M Shah"]
[Black "Shuvalova, Polina"]
[WhiteFideId "25033379"]
[BlackFideId "24171760"]
[WhiteElo "2084"]
[BlackElo "2342"]
[Result "0-1"]
[Round "03"]
[TimeControl "180+1"]
[Date "2022.11.23"]
[WhiteClock "0:00:02"]
[BlackClock "0:00:42"]

1. d4 {[%clk 0:02:58]}  Nf6 {[%clk 0:02:57]} 2. c4 {[%clk 0:02:56]}  e6 {[%clk 0:02:55]} 3. g3 {[%clk 0:02:56]}  d5 {[%clk 0:02:51]} 4. Bg2 {[%clk 0:02:56]}  Bb4+ {[%clk 0:02:49]} 5. Nd2 {[%clk 0:02:56]}  O-O {[%clk 0:02:43]} 6. Nf3 {[%clk 0:02:56]}  b6 {[%clk 0:02:42]} 7. O-O {[%clk 0:02:55]}  Bb7 {[%clk 0:02:37]} 8. Ne5 {[%clk 0:02:56]}  c6 {[%clk 0:02:32]} 9. a3 {[%clk 0:02:51]}  Bd6 {[%clk 0:02:29]} 10. e4 {[%clk 0:02:49]}  dxc4 {[%clk 0:02:26]} 11. Nexc4 {[%clk 0:02:30]}  Be7 {[%clk 0:02:25]} 12. e5 {[%clk 0:02:28]}  Ne8 {[%clk 0:02:22]} 13. Ne4 {[%clk 0:02:27]}  Na6 {[%clk 0:02:20]} 14. Be3 {[%clk 0:02:12]}  Nac7 {[%clk 0:02:15]} 15. h4 {[%clk 0:01:58]}  h6 {[%clk 0:02:08]} 16. h5 {[%clk 0:01:55]}  Nd5 {[%clk 0:02:07]} 17. Qg4 {[%clk 0:01:37]}  Kh8 {[%clk 0:01:44]} 18. Rad1 {[%clk 0:01:05]}  Qd7 {[%clk 0:01:41]} 19. Bc1 {[%clk 0:00:28]}  Rd8 {[%clk 0:01:36]} 20. f4 {[%clk 0:00:26]}  f5 {[%clk 0:01:34]} 21. exf6 {[%clk 0:00:26]}  Nexf6 {[%clk 0:01:33]} 22. Nxf6 {[%clk 0:00:16]}  Nxf6 {[%clk 0:01:25]} 23. Qg6 {[%clk 0:00:16]}  Qe8 {[%clk 0:01:21]} 24. Ne5 {[%clk 0:00:17]}  Bd6 {[%clk 0:01:17]} 25. Be3 {[%clk 0:00:12]}  Bxe5 {[%clk 0:01:10]} 26. fxe5 {[%clk 0:00:09]}  Qxg6 {[%clk 0:00:57]} 27. hxg6 {[%clk 0:00:08]}  Nd5 {[%clk 0:00:57]} 28. Bc1 {[%clk 0:00:07]}  Ne7 {[%clk 0:00:56]} 29. Be4 {[%clk 0:00:06]}  Kg8 {[%clk 0:00:56]} 30. Bf4 {[%clk 0:00:04]}  Rd7 {[%clk 0:00:53]} 31. Be3 {[%clk 0:00:03]}  Rfd8 {[%clk 0:00:51]} 32. Rf7 {[%clk 0:00:02]}  c5 {[%clk 0:00:41]} 33. Bxb7 {[%clk 0:00:02]}  Rxb7 {[%clk 0:00:42]} 0-1


[Site "https://www.chess.com"]

[Event "Titled Tuesday Blitz November 22 Early 2022"]
[White "Avazkhonov, Alikhon"]
[Black "Nanditha, V"]
[WhiteFideId "14208504"]
[BlackFideId "46626697"]
[WhiteElo "1739"]
[BlackElo "1564"]
[Result "1-0"]
[Round "03"]
[TimeControl "180+1"]
[Date "2022.11.23"]
[WhiteClock "0:00:06"]
[BlackClock "0:00:18"]

1. d4 {[%clk 0:03:00]}  d5 {[%clk 0:02:59]} 2. c4 {[%clk 0:03:01]}  e6 {[%clk 0:02:59]} 3. Nc3 {[%clk 0:03:01]}  c6 {[%clk 0:02:58]} 4. e4 {[%clk 0:03:01]}  dxe4 {[%clk 0:02:51]} 5. Nxe4 {[%clk 0:03:02]}  Nf6 {[%clk 0:02:51]} 6. Nxf6+ {[%clk 0:03:01]}  Qxf6 {[%clk 0:02:52]} 7. Nf3 {[%clk 0:03:01]}  Bb4+ {[%clk 0:02:51]} 8. Bd2 {[%clk 0:03:02]}  a5 {[%clk 0:02:42]} 9. Bd3 {[%clk 0:03:00]}  Bxd2+ {[%clk 0:02:33]} 10. Qxd2 {[%clk 0:03:01]}  O-O {[%clk 0:02:34]} 11. O-O-O {[%clk 0:02:52]}  b5 {[%clk 0:02:29]} 12. Ng5 {[%clk 0:02:43]}  g6 {[%clk 0:02:16]} 13. h4 {[%clk 0:02:42]}  Qxd4 {[%clk 0:02:01]} 14. Nxh7 {[%clk 0:02:36]}  bxc4 {[%clk 0:01:53]} 15. Qh6 {[%clk 0:01:36]}  cxd3 {[%clk 0:01:25]} 16. Qxf8+ {[%clk 0:00:31]}  Kxh7 {[%clk 0:01:23]} 17. Qxc8 {[%clk 0:00:31]}  Qc5+ {[%clk 0:00:40]} 18. Kb1 {[%clk 0:00:30]}  Qc2+ {[%clk 0:00:34]} 19. Ka1 {[%clk 0:00:30]}  a4 {[%clk 0:00:26]} 20. Qb7 {[%clk 0:00:26]}  a3 {[%clk 0:00:20]} 21. Rb1 {[%clk 0:00:12]}  Ra4 {[%clk 0:00:18]} 22. Qxf7+ {[%clk 0:00:08]}  Kh8 {[%clk 0:00:17]} 23. Qf8+ {[%clk 0:00:08]}  Kh7 {[%clk 0:00:17]} 24. Qxb8 {[%clk 0:00:07]}  d2 {[%clk 0:00:15]} 25. Qb7+ {[%clk 0:00:07]}  Kh6 {[%clk 0:00:15]} 26. Qb3 {[%clk 0:00:05]}  axb2+ {[%clk 0:00:11]} 27. Rxb2 {[%clk 0:00:06]}  Qe4 {[%clk 0:00:11]} 28. Qe3+ {[%clk 0:00:05]}  Qxe3 {[%clk 0:00:11]} 29. fxe3 {[%clk 0:00:06]}  Re4 {[%clk 0:00:10]} 30. Rxd2 {[%clk 0:00:05]}  Kh5 {[%clk 0:00:11]} 31. Rhd1 {[%clk 0:00:04]}  Kg4 {[%clk 0:00:12]} 32. Rd4 {[%clk 0:00:04]}  Rxd4 {[%clk 0:00:11]} 33. Rxd4+ {[%clk 0:00:05]}  Kg3 {[%clk 0:00:12]} 34. Rd6 {[%clk 0:00:05]}  Kxg2 {[%clk 0:00:13]} 35. Rxe6 {[%clk 0:00:05]}  Kf3 {[%clk 0:00:14]} 36. Rxg6 {[%clk 0:00:06]}  Kxe3 {[%clk 0:00:15]} 37. h5 {[%clk 0:00:05]}  c5 {[%clk 0:00:16]} 38. h6 {[%clk 0:00:06]}  c4 {[%clk 0:00:17]} 39. h7 {[%clk 0:00:06]}  c3 {[%clk 0:00:17]} 40. h8=Q {[%clk 0:00:06]}  c2 {[%clk 0:00:18]} 41. Qc3+ {[%clk 0:00:06]}  Ke2 {[%clk 0:00:18]} 42. Re6+ {[%clk 0:00:06]}  Kd1 {[%clk 0:00:18]} 43. Re1# {[%clk 0:00:06]} 1-0


[Site "https://www.chess.com"]

[Event "Titled Tuesday Blitz November 22 Early 2022"]
[White "Balabayeva, Xeniya"]
[Black "Hristodoulou, Panagiotis"]
[WhiteFideId "13719688"]
[BlackFideId "4214340"]
[WhiteElo "2041"]
[BlackElo "2272"]
[Result "1-0"]
[Round "03"]
[TimeControl "180+1"]
[Date "2022.11.23"]
[WhiteClock "0:00:01"]
[BlackClock "0:00:01"]

1. d4 {[%clk 0:03:00]}  d5 {[%clk 0:02:59]} 2. c4 {[%clk 0:02:56]}  e6 {[%clk 0:02:59]} 3. Nc3 {[%clk 0:02:56]}  h6 {[%clk 0:02:56]} 4. Nf3 {[%clk 0:02:52]}  Nf6 {[%clk 0:02:55]} 5. e3 {[%clk 0:02:48]}  a6 {[%clk 0:02:24]} 6. cxd5 {[%clk 0:02:21]}  exd5 {[%clk 0:02:24]} 7. Bd3 {[%clk 0:02:22]}  Bd6 {[%clk 0:02:18]} 8. Qc2 {[%clk 0:02:19]}  O-O {[%clk 0:02:17]} 9. O-O {[%clk 0:01:54]}  Nc6 {[%clk 0:02:13]} 10. Bf5 {[%clk 0:01:42]}  Bxf5 {[%clk 0:02:10]} 11. Qxf5 {[%clk 0:01:40]}  Re8 {[%clk 0:02:04]} 12. Bd2 {[%clk 0:01:21]}  Ne7 {[%clk 0:01:32]} 13. Qd3 {[%clk 0:01:18]}  c6 {[%clk 0:01:31]} 14. a3 {[%clk 0:01:15]}  Nc8 {[%clk 0:01:30]} 15. Rfc1 {[%clk 0:01:00]}  Ne4 {[%clk 0:01:09]} 16. h3 {[%clk 0:00:45]}  Bc7 {[%clk 0:01:05]} 17. Qe2 {[%clk 0:00:33]}  Nxc3 {[%clk 0:00:48]} 18. Rxc3 {[%clk 0:00:28]}  Nd6 {[%clk 0:00:47]} 19. Rac1 {[%clk 0:00:21]}  Ne4 {[%clk 0:00:45]} 20. R3c2 {[%clk 0:00:20]}  Qd6 {[%clk 0:00:31]} 21. b4 {[%clk 0:00:14]}  Ng5 {[%clk 0:00:27]} 22. Kf1 {[%clk 0:00:07]}  Re6 {[%clk 0:00:16]} 23. Nxg5 {[%clk 0:00:06]}  hxg5 {[%clk 0:00:16]} 24. g3 {[%clk 0:00:06]}  Rae8 {[%clk 0:00:08]} 25. Kg2 {[%clk 0:00:06]}  Qd7 {[%clk 0:00:08]} 26. Qg4 {[%clk 0:00:05]}  f6 {[%clk 0:00:08]} 27. a4 {[%clk 0:00:05]}  Bb8 {[%clk 0:00:04]} 28. b5 {[%clk 0:00:04]}  axb5 {[%clk 0:00:05]} 29. axb5 {[%clk 0:00:05]}  cxb5 {[%clk 0:00:05]} 30. Rc5 {[%clk 0:00:04]}  b6 {[%clk 0:00:03]} 31. R5c2 {[%clk 0:00:04]}  Qf7 {[%clk 0:00:02]} 32. Rc6 {[%clk 0:00:03]}  Re4 {[%clk 0:00:01]} 33. Qf5 {[%clk 0:00:02]}  R8e6 {[%clk 0:00:01]} 34. Rxe6 {[%clk 0:00:02]}  Qxe6 {[%clk 0:00:01]} 35. Rc8+ {[%clk 0:00:01]} 1-0


[Site "https://www.chess.com"]

[Event "Titled Tuesday Blitz November 22 Early 2022"]
[White "Barp, Alberto"]
[Black "Bon, Michael"]
[WhiteFideId "872555"]
[BlackFideId "620696"]
[WhiteElo "2313"]
[BlackElo "2332"]
[Result "1-0"]
[Round "03"]
[TimeControl "180+1"]
[Date "2022.11.23"]
[WhiteClock "0:01:03"]
[BlackClock "0:00:06"]

1. d4 {[%clk 0:02:59]}  d5 {[%clk 0:02:58]} 2. Nf3 {[%clk 0:02:58]}  Nf6 {[%clk 0:02:56]} 3. Bf4 {[%clk 0:02:58]}  c5 {[%clk 0:02:51]} 4. e3 {[%clk 0:02:58]}  Nc6 {[%clk 0:02:50]} 5. Nbd2 {[%clk 0:02:58]}  Nh5 {[%clk 0:02:43]} 6. dxc5 {[%clk 0:02:56]}  Nxf4 {[%clk 0:02:42]} 7. exf4 {[%clk 0:02:57]}  Qa5 {[%clk 0:02:33]} 8. Bd3 {[%clk 0:02:50]}  g6 {[%clk 0:02:24]} 9. c3 {[%clk 0:02:47]}  Qxc5 {[%clk 0:02:22]} 10. O-O {[%clk 0:02:47]}  Bg7 {[%clk 0:02:21]} 11. Re1 {[%clk 0:02:45]}  O-O {[%clk 0:02:17]} 12. Nb3 {[%clk 0:02:33]}  Qd6 {[%clk 0:02:15]} 13. Qd2 {[%clk 0:02:33]}  Bg4 {[%clk 0:02:09]} 14. Nbd4 {[%clk 0:02:28]}  Bxf3 {[%clk 0:01:55]} 15. Nxf3 {[%clk 0:02:28]}  d4 {[%clk 0:01:29]} 16. c4 {[%clk 0:02:20]}  e6 {[%clk 0:01:12]} 17. h4 {[%clk 0:02:19]}  h5 {[%clk 0:01:08]} 18. g3 {[%clk 0:02:15]}  Rac8 {[%clk 0:01:02]} 19. Rad1 {[%clk 0:02:15]}  Rfd8 {[%clk 0:01:01]} 20. a3 {[%clk 0:02:13]}  a5 {[%clk 0:00:47]} 21. Ng5 {[%clk 0:02:12]}  b6 {[%clk 0:00:32]} 22. Qe2 {[%clk 0:02:08]}  Nb8 {[%clk 0:00:19]} 23. Qe4 {[%clk 0:02:07]}  Qc7 {[%clk 0:00:14]} 24. Nxe6 {[%clk 0:02:04]}  fxe6 {[%clk 0:00:12]} 25. Qxg6 {[%clk 0:02:04]}  Qf7 {[%clk 0:00:12]} 26. Qh7+ {[%clk 0:01:55]}  Kf8 {[%clk 0:00:12]} 27. Bg6 {[%clk 0:01:55]}  Qf6 {[%clk 0:00:12]} 28. Qxh5 {[%clk 0:01:48]}  Nc6 {[%clk 0:00:12]} 29. Rd3 {[%clk 0:01:41]}  Ne7 {[%clk 0:00:12]} 30. Bh7 {[%clk 0:01:36]}  Rxc4 {[%clk 0:00:12]} 31. Qg4 {[%clk 0:01:32]}  Rd6 {[%clk 0:00:11]} 32. h5 {[%clk 0:01:20]}  Nf5 {[%clk 0:00:09]} 33. Bg6 {[%clk 0:01:18]}  Rc8 {[%clk 0:00:06]} 34. Re5 {[%clk 0:01:17]}  Nh6 {[%clk 0:00:06]} 35. Qe2 {[%clk 0:01:17]}  Nf5 {[%clk 0:00:05]} 36. Qe4 {[%clk 0:01:12]}  Qe7 {[%clk 0:00:05]} 37. Rxf5+ {[%clk 0:01:04]}  exf5 {[%clk 0:00:05]} 38. Qxf5+ {[%clk 0:01:05]}  Kg8 {[%clk 0:00:04]} 39. Qxc8+ {[%clk 0:01:05]}  Rd8 {[%clk 0:00:04]} 40. Qc4+ {[%clk 0:01:05]}  Kh8 {[%clk 0:00:03]} 41. Rd1 {[%clk 0:01:02]}  Qf6 {[%clk 0:00:04]} 42. Qd3 {[%clk 0:01:02]}  Qd6 {[%clk 0:00:04]} 43. Re1 {[%clk 0:01:02]}  Rf8 {[%clk 0:00:04]} 44. f5 {[%clk 0:01:02]}  Qf6 {[%clk 0:00:05]} 45. Re6 {[%clk 0:01:03]}  Bh6 {[%clk 0:00:06]} 46. Rxf6 {[%clk 0:01:03]}  Rxf6 {[%clk 0:00:06]} 47. Qe4 {[%clk 0:01:03]} 1-0


[Site "https://www.chess.com"]